bitfinex/quotes_ETHUSD_20250827
["timestamp","ask_amount","ask_price","bid_price","bid_amount"]
[1756255151714,3.1568,4606.3,4606.2,0.001]
[1756255151715,5.76753979,4606.3,4606.2,0.001]
[1756255151923,3.47248,4606.3,4606.2,0.001]
[1756255152087,3.1568,4606.3,4606.2,0.001]
[1756255152286,5.32773979,4606.3,4606.2,0.001]
[1756255153292,0.33975294,4606.6,4606.2,3.9716]
[1756255153524,0.33975294,4606.6,4606.3,0.4604]
[1756255153924,2.17062995,4607.0,4606.3,0.4604]
[1756255154120,3.0,4606.9,4606.3,0.4604]
[1756255154420,0.43411148,4607.0,4606.3,0.4604]
[1756255154613,2.17066236,4606.9,4606.3,0.4604]
[1756255155119,2.17066236,4606.9,4606.2,3.675]
[1756255155120,3.0,4606.8,4606.2,3.675]
[1756255155320,5.17066093,4606.9,4606.2,3.675]
[1756255155724,0.43411148,4607.0,4606.2,5.84598119]
[1756255155893,2.61313221,4607.4,4606.9,0.2966]
[1756255155894,1e-08,4607.4,4606.9,0.2966]
[1756255156209,2.1704718,4607.3,4607.0,3.678]
[1756255156522,2.1704718,4607.3,4607.0,3.679]
[1756255156523,0.2909,4607.1,4607.0,3.679]
[1756255158125,2.17047169,4607.3,4607.0,3.679]
[1756255158628,2.17042852,4607.4,4607.0,3.679]
[1756255158829,0.1568,4607.1,4607.0,3.679]
[1756255159498,1e-08,4607.4,4607.0,3.679]
[1756255161700,0.1596,4607.1,4607.0,3.679]
[1756255161905,0.1596,4607.1,4606.6,2.1304]
[1756255162095,0.1596,4607.1,4606.6,5.345]
[1756255162495,2.17071428,4606.8,4606.6,5.345]
[1756255162709,0.50797143,4606.7,4606.6,5.345]
[1756255164328,0.4427,4608.2,4606.8,2.17068944]
[1756255164634,2.17218705,4607.9,4607.0,2.17058873]
[1756255164797,2.17218705,4607.9,4607.1,5.84655598]
[1756255165128,2.17218705,4607.9,4607.3,0.2966]
[1756255166035,2.19023488,4607.8,4607.3,0.2966]
[1756255166235,0.15680001,4607.4,4607.1,3.676]
[1756255166406,0.02156257,4607.3,4607.1,3.676]
[1756255166607,0.2909,4607.2,4607.1,3.676]
[1756255166935,0.83919519,4607.2,4607.1,3.676]
[1756255167141,0.2909,4607.2,4607.1,3.676]
[1756255167631,0.2909,4607.2,4606.5,6.30623449]
[1756255168938,2.46142455,4607.2,4606.5,3.675]
[1756255169236,0.75408101,4607.2,4606.5,5.84584102]
[1756255170359,0.75408101,4607.2,4606.5,3.675]
[1756255170649,2.92459912,4607.2,4606.5,3.675]
[1756255170961,2.1708388,4606.6,4606.3,0.001]
[1756255171117,2.17075129,4606.7,4606.6,3.673]
[1756255171446,2.17089267,4606.4,4606.3,0.001]
[1756255171625,2.1708536,4606.5,4606.3,3.674]
[1756255171825,0.2911,4606.4,4606.3,3.674]
[1756255172449,2.46199267,4606.4,4606.3,3.674]
[1756255172643,3.91705199,4606.4,4606.3,3.674]
[1756255173031,0.29245991,4607.1,4606.3,4.4242]
[1756255173227,6.20370591,4607.8,4606.5,2.17084554]
[1756255173439,2.17047755,4607.3,4606.4,2.60678755]
[1756255173735,2.42149415,4607.3,4606.5,0.4359]
[1756255173950,6.43472251,4607.3,4606.6,3.672]
[1756255174151,2.17055586,4607.2,4606.6,3.672]
[1756255175657,2.17055586,4607.2,4606.7,3.672]
[1756255175824,0.24215725,4607.1,4606.7,3.672]
[1756255176320,0.1658,4606.8,4606.3,0.001]
[1756255176533,2.17089267,4606.4,4606.3,3.672]
[1756255176744,0.1684,4606.4,4606.3,0.001]
[1756255177053,2.33929267,4606.4,4606.3,3.673]
[1756255177256,2.7924582,4606.4,4606.3,3.673]
[1756255177754,2.7924582,4606.4,4606.3,0.001]
[1756255179126,6.24232077,4606.4,4606.3,0.001]
[1756255179341,6.2207582,4606.4,4606.3,0.001]
[1756255180134,5.17093979,4606.3,4606.2,0.001]
[1756255180448,7.06139064,4606.3,4606.2,0.001]
[1756255180756,7.99800408,4606.3,4606.2,0.001]
[1756255182128,11.67000408,4606.3,4606.2,0.001]
[1756255183861,2.17098693,4606.2,4606.1,1e-08]
[1756255184031,5.68988656,4606.2,4606.1,1e-08]
[1756255184232,2.17112833,4605.9,4605.8,1e-08]
[1756255184431,22.38664134,4605.9,4605.8,1e-08]
[1756255184662,22.96197877,4605.9,4605.8,1e-08]
[1756255184880,23.21299537,4605.9,4605.8,1e-08]
[1756255185649,19.12119537,4605.9,4605.8,1e-08]
[1756255186186,5.42214493,4605.9,4605.8,1e-08]
[1756255186369,5.42214493,4605.9,4605.8,0.31430001]
[1756255186688,5.42214493,4605.9,4605.8,0.75020001]
[1756255187257,5.42214493,4605.9,4605.8,0.31430001]
[1756255187674,5.58794493,4605.9,4605.8,1e-08]
[1756255187862,9.25994493,4605.9,4605.8,1e-08]
[1756255189071,9.09314493,4605.9,4605.8,1e-08]
[1756255189554,9.25894493,4605.9,4605.8,1e-08]
[1756255189755,9.09314493,4605.9,4605.8,1e-08]
[1756255190969,9.25894493,4605.9,4605.8,1e-08]
[1756255192081,9.09114493,4605.9,4605.8,0.31430001]
[1756255192499,9.09114493,4605.9,4605.8,0.75020001]
[1756255193295,9.09114493,4605.9,4605.8,0.31430001]
[1756255193779,9.09114493,4605.9,4605.8,1e-08]
[1756255194183,9.09114493,4605.9,4605.8,0.31430001]
[1756255194478,9.09114493,4605.9,4605.8,0.75020001]
[1756255194683,9.09114493,4605.9,4605.8,0.31430001]
[1756255197002,5.42214493,4605.9,4605.8,0.75020001]
[1756255197191,9.09114493,4605.9,4605.8,0.75020001]
[1756255197866,9.09114493,4605.9,4605.8,1e-08]
[1756255198097,9.09114493,4605.9,4605.8,0.31180001]
[1756255198278,9.09114493,4605.9,4605.8,1e-08]
[1756255198465,9.25694493,4605.9,4605.8,1e-08]
[1756255198898,9.68794493,4605.9,4605.8,1e-08]
[1756255199103,9.25694493,4605.9,4605.8,1e-08]
[1756255200565,9.25694493,4605.9,4604.8,0.021]
[1756255200566,5.17117547,4605.8,4604.8,0.021]
[1756255200765,8.35647511,4604.9,4604.8,0.021]
[1756255200968,15.19387511,4604.9,4604.8,0.021]
[1756255201199,5.17159981,4604.9,4604.8,0.021]
[1756255201398,8.84059981,4604.9,4604.8,0.3328]
[1756255201568,9.42292846,4604.9,4604.8,0.3328]
[1756255201764,5.17159981,4604.9,4604.8,0.3328]
[1756255202104,5.17159981,4604.9,4604.8,0.7654]
[1756255202603,8.84059981,4604.9,4604.8,0.021]
[1756255202898,8.84059981,4604.9,4604.8,0.3328]
[1756255203066,8.84059981,4604.9,4604.8,0.7654]
[1756255203464,5.17159981,4604.9,4604.8,0.7654]
[1756255204589,0.33986466,4605.1,4604.8,0.7654]
[1756255204793,0.33986466,4605.1,4604.9,0.4326]
[1756255205174,0.33986466,4605.1,4605.0,0.3118]
[1756255205375,5.1713386,4605.5,4605.0,0.3118]
[1756255205576,5.1713386,4605.5,4605.0,0.7444]
[1756255205776,2.17136405,4605.4,4605.1,0.4326]
[1756255206006,2.17155001,4605.1,4604.8,0.021]
[1756255206309,2.17136405,4605.4,4605.3,0.3118]
[1756255206679,2.17136405,4605.4,4605.3,0.7444]
[1756255208210,2.17136405,4605.4,4605.3,0.3118]
[1756255208416,2.17136405,4605.4,4605.3,0.7444]
[1756255208806,3.0,4605.6,4605.3,0.7444]
[1756255209303,5.171276,4605.6,4605.4,0.4326]
[1756255209517,5.171276,4605.6,4605.5,0.3118]
[1756255209694,5.171276,4605.6,4605.5,0.7444]
[1756255212511,5.171276,4605.6,4605.5,0.3118]
[1756255212891,5.171276,4605.6,4605.5,0.7444]
[1756255213086,0.33983605,4605.8,4605.5,0.7444]
[1756255213315,0.002,4605.9,4605.6,0.4326]
[1756255213691,0.002,4605.9,4605.8,0.3118]
[1756255213888,2.17312833,4605.9,4605.8,0.3118]
[1756255214088,0.002,4605.9,4605.3,0.4326]
[1756255214425,0.1552,4605.4,4604.8,0.021]
[1756255214627,2.17146782,4605.2,4604.9,0.4326]
[1756255214786,2.17146782,4605.2,4605.1,0.3118]
[1756255215190,2.17146782,4605.2,4605.1,0.7444]
[1756255215415,2.17142044,4605.3,4605.1,0.7444]
[1756255215611,2.17137069,4605.4,4605.1,0.7444]
[1756255215925,2.17141977,4605.3,4605.1,0.7444]
[1756255216928,2.17145835,4605.2,4605.1,0.7444]
[1756255217222,3.0,4605.6,4604.8,0.021]
[1756255217426,2.1715252,4605.1,4604.8,0.4536]
[1756255217828,2.1715252,4605.1,4605.0,0.3118]
[1756255218538,2.1715252,4605.1,4604.8,0.4536]
[1756255220328,3.0,4605.4,4604.8,0.021]
[1756255220532,0.1552,4604.9,4604.8,0.021]
[1756255221302,2.17151328,4605.1,4604.8,0.021]
[1756255221503,2.17146718,4605.2,4604.8,0.021]
[1756255222329,2.17146718,4605.2,4604.8,0.4536]
[1756255222534,0.33982331,4605.8,4605.1,0.3118]
[1756255222833,2.17118101,4605.8,4605.2,0.4326]
[1756255223031,2.17118101,4605.8,4605.7,0.3118]
[1756255223328,6.27240691,4605.8,4605.7,0.3118]
[1756255223549,5.17122283,4605.7,4605.2,0.4326]
[1756255223838,3.0,4605.7,4605.2,0.4326]
[1756255224039,3.0,4605.7,4605.6,0.3118]
[1756255224426,0.3397969,4605.7,4605.6,0.3118]
[1756255224931,3.3397969,4605.7,4605.6,0.7444]
[1756255225136,0.3397969,4605.7,4605.6,0.7444]
[1756255227733,0.002,4605.9,4605.6,0.7444]
[1756255227907,0.002,4605.9,4605.7,0.4326]
[1756255228329,0.002,4605.9,4605.8,0.2973]
[1756255228733,0.002,4605.9,4605.8,0.7712]
[1756255233587,0.002,4605.9,4605.8,0.2973]
[1756255234127,2.17312915,4605.9,4605.3,0.4739]
[1756255234324,0.02156257,4605.8,4604.9,0.4739]
[1756255234537,0.02156257,4605.8,4605.0,3.668]
[1756255235166,2.17130179,4605.6,4605.0,3.668]
[1756255235375,0.02156257,4605.5,4605.0,3.668]
[1756255235880,0.02156257,4605.5,4605.0,4.1419]
[1756255236579,0.02156257,4605.5,4604.8,0.021]
[1756255236580,2.17156082,4605.0,4604.8,0.021]
[1756255236781,0.32716257,4604.9,4604.8,0.021]
[1756255237240,2.49876238,4604.9,4604.8,0.021]
[1756255237697,9.45926238,4604.9,4604.8,0.021]
[1756255237846,11.10769981,4604.9,4604.8,0.021]
[1756255238184,13.42945118,4604.9,4604.1,0.001]
[1756255238337,2.17169413,4604.7,4604.1,0.001]
[1756255238538,2.43885333,4604.7,4604.6,1e-08]
[1756255238777,6.16707769,4604.7,4604.6,1e-08]
[1756255238982,6.14551512,4604.7,4604.6,1e-08]
[1756255239768,2.17183563,4604.4,4604.3,1e-08]
[1756255239950,3.0,4604.3,4604.1,1e-08]
[1756255240151,2.49879254,4604.2,4604.1,1e-08]
[1756255240677,5.79159254,4604.2,4604.1,1e-08]
[1756255240846,5.77002997,4604.2,4604.1,1e-08]
[1756255241961,2.1720715,4603.9,4603.8,1e-08]
[1756255242160,16.71750937,4603.9,4603.8,1e-08]
[1756255242366,17.2940468,4603.9,4603.8,1e-08]
[1756255242562,17.2940468,4603.9,4602.8,0.02]
[1756255242563,3.0,4603.8,4602.8,0.02]
[1756255242761,9.1848753,4602.9,4602.8,0.02]
[1756255242982,15.33101869,4602.9,4602.8,0.02]
[1756255243471,15.67106315,4602.9,4602.8,0.02]
[1756255244047,15.96356315,4602.9,4602.8,0.02]
[1756255244247,15.67106315,4602.9,4602.8,0.02]
[1756255244439,16.40542293,4602.9,4602.8,0.02]
[1756255244775,16.69792293,4602.9,4602.8,0.02]
[1756255245183,18.36892293,4602.9,4602.8,0.02]
[1756255245877,18.36892293,4602.9,4602.1,0.001]
[1756255245878,3.0,4602.8,4602.1,0.001]
[1756255246044,11.35774914,4602.2,4602.1,0.001]
[1756255246245,15.33224914,4602.2,4602.1,0.001]
[1756255248382,11.66324914,4602.2,4602.1,0.001]
[1756255248561,15.33224914,4602.2,4602.1,0.001]
[1756255249380,9.14737384,4602.2,4602.1,0.001]
[1756255249566,5.17287384,4602.2,4602.1,0.7722]
[1756255249747,8.84187384,4602.2,4602.1,0.7722]
[1756255249946,5.17287384,4602.2,4602.1,0.7722]
[1756255250247,8.84187384,4602.2,4602.1,0.7722]
[1756255250448,5.64357595,4602.2,4602.1,0.7722]
[1756255250660,9.31257595,4602.2,4602.1,0.2983]
[1756255250857,5.81307595,4602.2,4602.1,0.001]
[1756255251060,15.66695125,4602.2,4602.1,0.001]
[1756255254154,5.64357595,4602.2,4602.1,0.7722]
[1756255254474,2.172685,4602.6,4602.1,0.7722]
[1756255254475,3.67,4602.6,4602.1,0.7722]
[1756255254676,1.673,4602.9,4602.1,0.7722]
[1756255254677,3.67,4602.7,4602.2,0.4739]
[1756255254875,2.17282663,4602.3,4602.2,0.4739]
[1756255255053,3.0,4602.6,4602.3,0.4739]
[1756255255259,5.172685,4602.6,4602.5,0.2973]
[1756255255758,5.172685,4602.6,4602.5,0.7712]
[1756255257390,2.172685,4602.6,4602.5,0.7712]
[1756255259158,2.172685,4602.6,4602.5,0.2973]
[1756255260412,5.841685,4602.6,4602.5,0.2973]
[1756255260781,5.841685,4602.6,4602.1,0.001]
[1756255260782,2.17282663,4602.3,4602.1,0.001]
[1756255260976,5.17287384,4602.2,4602.1,0.4657]
[1756255261185,8.99717384,4602.2,4602.1,0.001]
[1756255261389,10.41633014,4602.2,4602.1,0.001]
[1756255261912,10.60111223,4602.2,4602.1,0.001]
[1756255262424,10.75641223,4602.2,4602.1,0.001]
[1756255263115,6.93211223,4602.2,4602.1,0.001]
[1756255263306,10.60111223,4602.2,4602.1,0.001]
[1756255263506,9.18195593,4602.2,4602.1,0.3001]
[1756255264718,8.84187384,4602.2,4602.1,0.001]
[1756255264919,5.17287384,4602.2,4602.1,0.001]
[1756255265089,5.17287384,4602.2,4602.1,0.3001]
[1756255265285,8.84187384,4602.2,4602.1,0.3001]
[1756255265617,10.71713142,4602.2,4602.1,0.001]
[1756255266209,11.15843142,4602.2,4602.1,0.001]
[1756255266405,10.56183142,4602.2,4602.1,0.3001]
[1756255266708,10.72003142,4602.2,4602.1,0.001]
[1756255269312,11.06013,4602.2,4602.1,0.001]
[1756255269583,2.17296827,4602.0,4600.3,0.4647]
[1756255269919,3.0,4602.1,4600.2,0.001]
[1756255269920,2.17334608,4601.2,4600.2,0.001]
[1756255270086,7.51434608,4601.2,4600.2,0.001]
[1756255270415,7.67534608,4601.2,4600.6,0.4657]
[1756255270621,5.14197768,4601.2,4600.6,0.4657]
[1756255270825,9.15115911,4601.2,4600.6,0.4657]
[1756255271508,5.32115911,4601.2,4600.6,0.4657]
[1756255271692,9.14545911,4601.2,4600.6,0.4657]
[1756255271887,9.14545911,4601.2,4600.6,0.001]
[1756255274522,11.80527768,4601.2,4600.6,0.001]
[1756255274820,12.24657768,4601.2,4600.6,0.001]
[1756255275404,7.98097768,4601.2,4601.1,0.3001]
[1756255275623,11.65097768,4601.2,4601.1,0.3001]
[1756255276145,11.65097768,4601.2,4601.1,0.001]
[1756255277235,11.80627768,4601.2,4601.1,0.001]
[1756255277805,11.65097768,4601.2,4601.1,0.001]
[1756255278727,11.99115013,4601.2,4601.1,0.001]
[1756255278935,12.14645013,4601.2,4601.1,0.001]
[1756255279107,11.99115013,4601.2,4601.1,0.001]
[1756255279302,11.99115013,4601.2,4601.1,0.3001]
[1756255279505,11.99115013,4601.2,4601.1,0.7648]
[1756255280020,7.18551853,4601.2,4601.1,0.7648]
[1756255280223,7.85551853,4601.2,4601.1,0.7648]
[1756255281503,7.85551853,4601.2,4601.1,0.3001]
[1756255282337,6.18351853,4601.2,4601.1,0.3001]
[1756255286553,6.18351853,4601.2,4601.1,0.001]
[1756255286836,7.17450027,4601.2,4601.1,0.001]
[1756255287035,7.01920027,4601.2,4601.1,0.001]
[1756255287723,16.35937557,4601.2,4601.1,0.001]
[1756255287919,16.01920312,4601.2,4601.1,0.001]
[1756255288314,16.10637512,4601.2,4601.1,0.001]
[1756255289545,9.92149982,4601.2,4601.1,0.001]
[1756255289712,9.92349982,4601.2,4601.1,0.001]
[1756255290045,9.83632782,4601.2,4601.1,0.001]
[1756255290205,9.92349982,4601.2,4601.1,0.001]
[1756255293547,16.54147512,4601.2,4601.1,0.001]
[1756255293847,16.54147512,4601.2,4601.1,1e-08]
[1756255294341,2.17353503,4600.8,4600.6,0.001]
[1756255294548,16.7209729,4600.8,4600.6,0.001]
[1756255294714,17.29611033,4600.8,4600.6,0.001]
[1756255295145,17.38329333,4600.8,4600.6,0.001]
[1756255295946,16.95289333,4600.8,4600.6,0.001]
[1756255296129,17.27681302,4600.8,4600.6,0.001]
[1756255297852,17.11051302,4600.8,4600.6,0.001]
[1756255298154,13.44151302,4600.8,4600.6,0.001]
[1756255298354,17.11051302,4600.8,4600.6,0.001]
[1756255300729,17.45072233,4600.8,4600.6,0.001]
[1756255301825,17.45072233,4600.8,4600.7,0.3055]
[1756255302228,10.94192734,4600.8,4600.7,0.7594]
[1756255302426,17.03961964,4600.8,4600.7,0.7594]
[1756255302734,14.03961964,4600.8,4600.7,0.7594]
[1756255305060,13.69941033,4600.8,4600.7,0.7594]
[1756255313443,0.3401806,4600.9,4600.7,0.7594]
[1756255313644,0.002,4601.2,4600.8,0.4539]
[1756255313850,6.1848753,4601.1,4600.9,0.12143]
[1756255314038,6.1848753,4601.1,4601.0,0.7584]
[1756255314678,8.35826861,4601.1,4601.0,0.7584]
[1756255315365,6.1848753,4601.1,4601.0,0.7584]
[1756255317271,8.35826861,4601.1,4601.0,0.7584]
[1756255319364,6.1848753,4601.1,4601.0,0.7584]
[1756255320259,8.35826861,4601.1,4601.0,0.7584]
[1756255320868,8.35826861,4601.1,4600.7,0.001]
[1756255321079,2.30463503,4600.8,4600.7,0.001]
[1756255321374,2.30463503,4600.8,4600.2,0.4322]
[1756255321375,2.17377127,4600.3,4600.2,0.001]
[1756255321574,15.04720914,4600.3,4600.2,0.001]
[1756255321770,16.79784507,4600.3,4600.2,0.001]
[1756255322169,17.13806833,4600.3,4600.2,0.001]
[1756255322349,8.3588356,4599.9,4599.8,0.021]
[1756255322548,12.0258356,4599.9,4599.8,0.021]
[1756255322776,13.61770714,4599.9,4599.8,0.021]
[1756255323873,13.48000714,4599.9,4599.8,0.021]
[1756255324063,13.48000714,4599.9,4599.8,0.3117]
[1756255324263,6.1848753,4599.9,4599.8,0.3117]
[1756255324463,8.3588356,4599.9,4599.8,0.7429]
[1756255325577,8.35869326,4600.3,4599.8,0.7429]
[1756255325752,2.17387584,4600.1,4599.9,0.4312]
[1756255325954,3.668,4600.2,4599.9,0.4312]
[1756255325955,2.17382506,4600.2,4599.9,0.4312]
[1756255326151,6.1848753,4600.3,4600.0,0.2907]
[1756255326362,6.1848753,4600.3,4600.1,0.4312]
[1756255326566,6.1848753,4600.3,4600.2,0.7219]
[1756255326567,8.35864657,4600.3,4600.2,0.7219]
[1756255327749,6.5250708,4600.3,4600.2,0.7219]
[1756255328150,8.69884207,4600.3,4600.2,0.7219]
[1756255329181,8.69884207,4600.3,4600.2,0.2907]
[1756255329357,8.69884207,4600.3,4600.2,0.7219]
[1756255331959,6.5250708,4600.3,4600.2,0.7219]
[1756255332359,8.69884207,4600.3,4600.2,0.7219]
[1756255332860,8.69884207,4600.3,4600.2,0.2907]
[1756255333185,2.1738933,4600.1,4599.8,0.4522]
[1756255333389,2.1738933,4600.1,4599.8,0.021]
[1756255333586,2.17392195,4600.0,4599.9,0.4312]
[1756255334090,2.17392195,4600.0,4599.9,0.7219]
[1756255334976,8.35869382,4600.2,4599.9,0.7219]
[1756255335177,6.1848753,4600.2,4600.0,0.4312]
[1756255335381,8.35869677,4600.2,4600.1,0.7219]
[1756255336219,6.1848753,4600.2,4599.8,0.021]
[1756255336416,2.3050603,4599.9,4599.8,0.021]
[1756255336766,5.9720603,4599.9,4599.8,0.021]
[1756255337304,2.17391612,4600.0,4599.8,0.7429]
[1756255337516,2.17391612,4600.0,4599.9,0.4312]
[1756255337697,2.17391612,4600.0,4599.9,0.7219]
[1756255338026,2.1739603,4599.9,4599.8,0.021]
[1756255338316,8.3588356,4599.9,4599.8,0.021]
[1756255338471,8.4932356,4599.9,4599.8,0.021]
[1756255338670,8.3588356,4599.9,4599.8,0.021]
[1756255339600,13.35220657,4599.9,4599.8,0.021]
[1756255340108,13.81750657,4599.9,4599.8,0.021]
[1756255341217,13.35220657,4599.9,4599.8,0.021]
[1756255342007,13.81750657,4599.9,4599.8,0.021]
[1756255343223,16.81750657,4599.9,4599.8,0.021]
[1756255344951,2.17419663,4599.4,4599.3,0.001]
[1756255345092,15.0476345,4599.4,4599.3,0.001]
[1756255345423,15.62417193,4599.4,4599.3,0.001]
[1756255346012,15.02607193,4599.4,4599.3,0.001]
[1756255346212,15.33117193,4599.4,4599.3,0.001]
[1756255346394,16.57419131,4599.4,4599.3,0.001]
[1756255347425,13.26909131,4599.4,4599.3,0.7229]
[1756255347622,13.57529131,4599.4,4599.3,0.001]
[1756255348024,13.26909131,4599.4,4599.3,0.001]
[1756255348506,13.26909131,4599.4,4599.3,0.763]
[1756255349013,13.26909131,4599.4,4599.3,0.3175]
[1756255350000,13.26909131,4599.4,4599.3,0.001]
[1756255350205,13.26909131,4599.4,4599.3,0.3175]
[1756255351308,13.41119131,4599.4,4599.3,0.001]
[1756255352228,7.08321601,4599.4,4599.3,0.001]
[1756255352430,13.41019131,4599.4,4599.3,0.001]
[1756255354011,13.26809131,4599.4,4599.3,0.001]
[1756255354208,9.60209131,4599.4,4599.3,0.3175]
[1756255354520,13.26809131,4599.4,4599.3,0.3175]
[1756255358638,2.51438722,4599.6,4599.3,0.3175]
[1756255358807,2.51438606,4599.6,4599.3,0.763]
[1756255359004,0.3402768,4599.6,4599.3,0.763]
[1756255359205,0.3402768,4599.6,4599.4,0.4455]
[1756255359535,2.19571193,4599.5,4599.4,0.4455]
[1756255359710,2.17419663,4599.4,4599.3,0.001]
[1756255360121,2.31939663,4599.4,4599.3,0.001]
[1756255361035,2.17419663,4599.4,4599.3,0.001]
[1756255362340,2.17419663,4599.4,4599.3,0.763]
[1756255363704,5.84019663,4599.4,4599.3,0.763]
[1756255364309,7.29414644,4599.4,4599.3,0.001]
[1756255364508,7.43624644,4599.4,4599.3,0.001]
[1756255366318,7.29414644,4599.4,4599.3,0.001]
[1756255367337,7.29414644,4599.4,4599.3,0.763]
[1756255367538,2.17419663,4599.4,4599.3,0.763]
[1756255367740,6.5251521,4599.6,4599.3,0.763]
[1756255367940,6.1848753,4599.6,4599.3,0.763]
[1756255368244,6.1848753,4599.6,4599.4,0.4455]
[1756255368414,2.17419663,4599.4,4599.3,0.001]
[1756255368616,2.1957592,4599.4,4599.3,0.001]
[1756255368824,2.17419663,4599.4,4599.3,0.001]
[1756255369017,5.98129663,4599.4,4599.3,0.001]
[1756255369224,7.56556384,4599.4,4599.3,0.001]
[1756255371323,2.1742439,4599.3,4598.3,0.001]
[1756255371523,11.35930831,4598.9,4598.3,0.001]
[1756255371846,15.32640831,4598.9,4598.3,0.001]
[1756255372046,16.83411114,4598.9,4598.3,0.001]
[1756255372544,17.4704523,4598.9,4598.3,0.001]
[1756255372914,17.1744523,4598.9,4598.3,0.001]
[1756255373120,13.5094523,4598.9,4598.3,0.001]
[1756255373343,17.1744523,4598.9,4598.3,0.001]
[1756255375633,17.2616703,4598.9,4598.3,0.001]
[1756255376659,16.92132914,4598.9,4598.3,0.001]
[1756255377665,13.25632914,4598.9,4598.3,0.001]
[1756255377967,16.92132914,4598.9,4598.3,0.001]
[1756255379369,12.95422914,4598.9,4598.3,0.4443]
[1756255379531,16.61922914,4598.9,4598.5,0.4433]
[1756255379731,16.75502914,4598.9,4598.3,0.001]
[1756255379932,17.09535983,4598.9,4598.3,0.001]
[1756255380347,2.5147637,4598.9,4598.8,0.7682]
[1756255380550,9.1797637,4598.9,4598.8,0.7682]
[1756255380957,5.17448029,4598.8,4598.3,0.001]
[1756255381165,9.1848753,4598.4,4598.3,0.001]
[1756255381462,15.02454475,4598.4,4598.3,0.001]
[1756255381957,15.36490429,4598.4,4598.3,0.001]
[1756255382870,15.36490429,4598.4,4598.3,0.7482]
[1756255384571,11.69990429,4598.4,4598.3,0.7482]
[1756255384872,5.51502899,4598.4,4598.3,0.7482]
[1756255387079,3.34035954,4598.4,4598.3,0.7482]
[1756255388663,5.51502899,4598.4,4598.3,0.7482]
[1756255388871,5.17466945,4598.4,4598.3,0.7482]
[1756255389372,3.0,4598.4,4598.3,0.7482]
[1756255390048,3.664,4599.0,4598.3,1.04049716]
[1756255390246,3.0,4599.1,4598.4,0.4433]
[1756255390470,2.17438593,4599.0,4598.4,0.4433]
[1756255390875,5.17434859,4599.1,4598.9,0.3039]
[1756255391078,2.17438573,4599.0,4598.9,0.3039]
[1756255391754,2.17438573,4599.0,4598.9,0.7472]
[1756255392560,0.34229272,4599.7,4598.9,0.7472]
[1756255392765,0.002,4600.7,4599.7,2.83405482]
[1756255392939,0.002,4600.7,4599.7,3.35661375]
[1756255393143,0.002,4600.7,4599.7,3.63877321]
[1756255393340,3.002,4600.7,4599.7,4.08207321]
[1756255393580,3.002,4600.7,4599.7,4.16923621]
[1756255393958,0.002,4600.7,4599.7,4.16923621]
[1756255394580,0.002,4600.7,4600.1,2.83386578]
[1756255394782,0.002,4600.7,4600.1,4.50686578]
[1756255394943,0.002,4600.7,4600.1,8.91806578]
[1756255395142,0.002,4600.7,4600.1,6.0842]
[1756255395478,3.0,4600.1,4599.3,2.17423951]
[1756255395779,3.0,4600.1,4599.4,2.9695427]
[1756255395958,3.0,4600.1,4599.4,0.79535395]
[1756255396157,3.0,4600.1,4599.5,2.17414268]
[1756255396347,3.0,4600.1,4599.4,0.79535395]
[1756255396547,3.0,4600.1,4599.5,2.17414663]
[1756255396744,3.0,4600.1,4599.4,0.79535395]
[1756255396976,3.0,4600.1,4599.4,2.96953605]
[1756255397175,0.002,4600.2,4600.0,0.3039]
[1756255399078,0.002,4600.2,4599.3,2.17423307]
[1756255399079,0.3165,4600.1,4599.1,2.1163]
[1756255399262,0.3165,4600.1,4599.2,3.663]
[1756255399458,0.3165,4600.1,4599.4,2.17418094]
[1756255399659,0.002,4600.2,4599.5,2.19589071]
[1756255400679,0.002,4600.2,4599.5,0.02174149]
[1756255400888,0.002,4600.2,4599.4,2.61749514]
[1756255401085,2.17582239,4600.2,4599.4,0.4433]
[1756255401273,0.002,4600.2,4599.4,0.4433]
[1756255401473,0.002,4600.2,4599.4,2.61748452]
[1756255401779,0.002,4600.2,4599.4,2.92336828]
[1756255401984,0.002,4600.2,4599.4,0.74918376]
[1756255402183,2.17582515,4600.2,4599.4,0.74918376]
[1756255402388,3.0,4600.0,4599.1,5.336]
[1756255402564,3.0,4600.0,4599.8,0.02]
[1756255402750,0.3165,4599.9,4599.8,0.02]
[1756255403156,5.95439933,4599.9,4599.8,0.02]
[1756255405184,3.3165,4599.9,4599.8,0.02]
[1756255405591,3.0,4599.9,4599.8,0.3239]
[1756255405895,3.0,4599.9,4599.8,0.7672]
[1756255407362,3.0,4599.9,4599.8,0.7472]
[1756255408296,3.0,4599.8,4599.4,0.4334]
[1756255408467,3.0,4599.6,4599.1,1.673]
[1756255408664,0.3087,4599.5,4599.1,1.673]
[1756255408892,3.0,4599.6,4599.1,1.673]
[1756255409194,3.0,4599.6,4599.1,2.1064]
[1756255409567,3.0,4599.6,4599.1,1.673]
[1756255410066,3.0,4599.6,4599.1,2.1064]
[1756255410991,5.17400574,4599.9,4599.5,0.302]
[1756255411196,3.0,4599.9,4599.5,0.302]
[1756255411495,5.17396272,4599.9,4599.5,0.302]
[1756255411978,3.0,4599.9,4599.6,0.4334]
[1756255412179,0.002,4600.2,4599.3,0.001]
[1756255412180,2.17391531,4600.0,4599.8,0.302]
[1756255412980,0.3087,4599.9,4599.3,0.4344]
[1756255413212,2.48266048,4599.9,4599.3,0.4344]
[1756255414183,2.17401344,4599.8,4599.3,0.4344]
[1756255414372,2.17409597,4599.7,4599.3,0.001]
[1756255414794,5.17400447,4599.9,4599.6,0.302]